fUST/lending_fUST_20241111
["ID","MTS","AMOUNT","RATE_DAILY","PERIOD"]
[341899382,1731275442671,-500.0,0.00024673,2]
[341899383,1731275442681,-587.0,0.00024816,2]
[341899384,1731275442690,-1014.13354531,0.00024847,2]
[341899385,1731275442700,-1500.0,0.00024847,2]
[341899386,1731275442709,-1500.0,0.00024847,2]
[341899387,1731275442719,-1500.0,0.00024847,2]
[341899388,1731275442728,-1500.0,0.00024847,2]
[341899390,1731275442738,-238.754556,0.00024931,7]
[341899392,1731275442748,-238.754556,0.00024931,7]
[341899394,1731275442758,-500.0,0.00024931,2]
[341899396,1731275442767,-500.0,0.00024931,2]
[341899398,1731275442781,-294.95366055,0.00024931,2]
[341899400,1731275442792,-500.0,0.00024931,2]
[341899404,1731275442960,-502.90468829,0.00024931,2]
[341899405,1731275442970,-522.38397596,0.00024931,2]
[341899406,1731275442979,-408.51884689,0.00024931,2]
[341899407,1731275442989,-500.0,0.00024931,2]
[341899409,1731275442999,-500.0,0.00024931,2]
[341899410,1731275443009,-500.0,0.00024931,2]
[341899411,1731275443018,-500.0,0.00024931,2]
[341899412,1731275443032,-500.0,0.00024931,2]
[341899413,1731275443042,-500.0,0.00024931,2]
[341899414,1731275443052,-500.0,0.00024931,2]
[341899415,1731275443061,-280.82824512,0.00024931,2]
[341899416,1731275443070,-500.0,0.00024931,2]
[341899417,1731275443080,-500.0,0.00024931,2]
[341899418,1731275443089,-500.0,0.00024931,2]
[341899419,1731275443099,-500.0,0.00024931,2]
[341899420,1731275443109,-500.0,0.00024931,2]
[341899421,1731275443118,-500.0,0.00024931,2]
[341899422,1731275443128,-500.0,0.00024931,2]
[341899423,1731275443137,-500.0,0.00024931,2]
[341899424,1731275443147,-506.73797177,0.00024931,2]
[341899425,1731275443157,-500.0,0.00024931,2]
[341899426,1731275443168,-500.0,0.00024931,2]
[341899427,1731275443178,-500.0,0.00024931,2]
[341899428,1731275443188,-500.0,0.00024931,2]
[341899429,1731275443198,-500.0,0.00024931,2]
[341899430,1731275443208,-500.0,0.00024931,2]
[341899431,1731275443217,-512.23,0.00024931,2]
[341899432,1731275443227,-500.0,0.00024931,2]
[341899433,1731275443237,-500.0,0.00024931,2]
[341899434,1731275443247,-500.0,0.00024931,2]
[341899435,1731275443256,-500.0,0.00024931,2]
[341899436,1731275443266,-250.0,0.00024931,2]
[341899437,1731275443277,-500.0,0.00024931,2]
[341899438,1731275443287,-500.0,0.00024931,2]
[341899439,1731275443297,-500.0,0.00024931,2]
[341899440,1731275443306,-376.31299613,0.00024931,2]
[341899441,1731275443315,-500.0,0.00024931,2]
[341899442,1731275443325,-500.0,0.00024931,2]
[341899443,1731275443335,-500.0,0.00024931,2]
[341899444,1731275443344,-500.0,0.00024931,2]
[341899445,1731275443353,-500.0,0.00024931,2]
[341899446,1731275443362,-500.0,0.00024931,2]
[341899447,1731275443372,-211.73389115,0.00024931,2]
[341899448,1731275443382,-500.0,0.00024931,2]
[341899449,1731275443391,-500.0,0.00024931,2]
[341899450,1731275443400,-500.0,0.00024931,2]
[341899451,1731275443409,-500.0,0.00024931,2]
[341899452,1731275443419,-500.0,0.00024931,2]
[341899453,1731275443429,-774.27,0.00024931,2]
[341899454,1731275443439,-500.0,0.00024931,2]
[341899455,1731275443449,-512.62,0.00024931,2]
[341899456,1731275443458,-500.0,0.00024931,2]
[341899457,1731275443467,-500.0,0.00024931,2]
[341899458,1731275443476,-500.0,0.00024931,2]
[341899459,1731275443486,-500.0,0.00024931,2]
[341899460,1731275443496,-195.30133792,0.00024931,2]
[341899461,1731275443506,-500.0,0.00024931,2]
[341899462,1731275443515,-541.66,0.00024931,2]
[341899463,1731275443526,-500.0,0.00024931,2]
[341899464,1731275443536,-500.0,0.00024931,2]
[341899465,1731275443545,-500.0,0.00024931,2]
[341899466,1731275443555,-500.0,0.00024931,2]
[341899467,1731275443564,-500.0,0.00024931,2]
[341899468,1731275443574,-500.0,0.00024931,2]
[341899469,1731275443583,-500.0,0.00024931,2]
[341899470,1731275443593,-500.0,0.00024931,2]
[341899471,1731275443602,-500.0,0.00024931,2]
[341899472,1731275443611,-1074.93,0.00024931,2]
[341899473,1731275443622,-500.0,0.00024931,2]
[341899474,1731275443631,-477.93482842,0.00024931,2]
[341899475,1731275443640,-500.0,0.00024931,2]
[341899476,1731275443650,-1410.55,0.00024931,2]
[341899477,1731275443659,-586.88999281,0.00024931,2]
[341899478,1731275443668,-500.0,0.00024931,2]
[341899479,1731275443678,-500.0,0.00024931,2]
[341899480,1731275443687,-815.49,0.00024931,2]
[341899481,1731275443697,-1000.0,0.00024931,2]
[341899482,1731275443706,-500.0,0.00024931,2]
[341899483,1731275443715,-500.0,0.00024931,2]
[341899484,1731275443724,-500.0,0.00024931,2]
[341899485,1731275443733,-500.0,0.00024931,2]
[341899486,1731275443743,-500.0,0.00024931,2]
[341899487,1731275443753,-500.0,0.00024931,2]
[341899488,1731275443762,-474.0815568,0.00024931,2]
[341899489,1731275443772,-500.0,0.00024931,2]
[341899490,1731275443791,-500.0,0.00024931,2]
[341899491,1731275443804,-500.0,0.00024931,2]
[341899492,1731275443814,-501.67,0.00024931,2]
[341899493,1731275443824,-500.0,0.00024931,2]
[341899494,1731275443834,-500.0,0.00024931,2]
[341899495,1731275443844,-500.0,0.00024931,2]
[341899496,1731275443853,-182.45188666,0.00024931,2]
[341899497,1731275443863,-500.0,0.00024931,2]
[341899498,1731275443873,-592.84,0.00024931,2]
[341899499,1731275443884,-500.0,0.00024931,2]
[341899500,1731275443893,-500.0,0.00024931,2]
[341899501,1731275443903,-500.0,0.00024931,2]
[341899502,1731275443913,-500.0,0.00024931,2]
[341899503,1731275443922,-500.0,0.00024931,2]
[341899504,1731275443932,-500.0,0.00024931,2]
[341899505,1731275443941,-500.0,0.00024931,2]
[341899506,1731275443951,-500.0,0.00024931,2]
[341899507,1731275443961,-930.79,0.00024931,2]
[341899508,1731275443971,-500.0,0.00024931,2]
[341899509,1731275443980,-500.0,0.00024931,2]
[341899510,1731275443989,-2336.0,0.00024931,2]
[341899511,1731275443999,-500.0,0.00024931,2]
[341899512,1731275444009,-500.0,0.00024931,2]
[341899513,1731275444017,-768.52,0.00024931,2]
[341899514,1731275444029,-500.0,0.00024931,2]
[341899515,1731275444038,-500.0,0.00024931,2]
[341899516,1731275444047,-500.0,0.00024931,2]
[341899517,1731275444056,-500.0,0.00024931,2]
[341899518,1731275444066,-500.0,0.00024931,2]
[341899519,1731275444077,-500.0,0.00024931,2]
[341899520,1731275444086,-180.88191647,0.00024931,2]
[341899521,1731275444096,-500.0,0.00024931,2]
[341899522,1731275444105,-500.0,0.00024931,2]
[341899523,1731275444115,-500.0,0.00024931,2]
[341899524,1731275444124,-500.0,0.00024931,2]
[341899525,1731275444134,-500.0,0.00024931,2]
[341899526,1731275444143,-500.0,0.00024931,2]
[341899527,1731275444152,-500.0,0.00024931,2]
[341899528,1731275444162,-500.8,0.00024931,2]
[341899529,1731275444171,-500.0,0.00024931,2]
[341899530,1731275444181,-500.0,0.00024931,2]
[341899531,1731275444190,-500.0,0.00024931,2]
[341899532,1731275444199,-500.0,0.00024931,2]
[341899533,1731275444209,-500.0,0.00024931,2]
[341899534,1731275444218,-500.0,0.00024931,2]
[341899535,1731275444227,-500.0,0.00024931,2]
[341899536,1731275444237,-500.0,0.00024931,2]
[341899537,1731275444247,-500.0,0.00024931,2]
[341899538,1731275444256,-500.0,0.00024931,2]
[341899539,1731275444266,-335.99836752,0.00024931,2]
[341899540,1731275444277,-500.0,0.00024931,2]
[341899541,1731275444287,-503.32595965,0.00024931,2]
[341899542,1731275444296,-500.0,0.00024931,2]
[341899543,1731275444306,-500.0,0.00024931,2]
[341899544,1731275444315,-500.0,0.00024931,2]
[341899545,1731275444325,-500.0,0.00024931,2]
[341899546,1731275444334,-602.57,0.00024931,2]
[341899547,1731275444343,-500.0,0.00024931,2]
[341899548,1731275444353,-500.0,0.00024931,2]
[341899549,1731275444363,-500.0,0.00024931,2]
[341899550,1731275444372,-1002.4,0.00024931,2]
[341899551,1731275444382,-500.0,0.00024931,2]
[341899552,1731275444391,-1035.7,0.00024931,2]
[341899553,1731275444401,-2715.5,0.00024931,2]
[341899554,1731275444410,-500.0,0.00024931,2]
[341899555,1731275444419,-500.0,0.00024931,2]
[341899556,1731275444429,-500.0,0.00024931,2]
[341899557,1731275444438,-500.0,0.00024931,2]
[341899558,1731275444447,-868.1,0.00024931,2]
[341899559,1731275444456,-500.0,0.00024931,2]
[341899560,1731275444465,-500.0,0.00024931,2]
[341899561,1731275444476,-159.52986273,0.00024931,2]
[341899562,1731275444486,-500.0,0.00024931,2]
[341899563,1731275444495,-500.0,0.00024931,2]
[341899564,1731275444506,-624.77,0.00024931,2]
[341899565,1731275444515,-1537.69,0.00024931,2]
[341899566,1731275444524,-25631.96,0.00024931,2]
[341899567,1731275444534,-500.0,0.00024931,2]
[341899568,1731275444544,-500.0,0.00024931,2]
[341899569,1731275444553,-195.70140117,0.00024931,2]
[341899570,1731275444563,-500.0,0.00024931,2]
[341899571,1731275444572,-500.0,0.00024931,2]
[341899572,1731275444582,-500.0,0.00024931,2]
[341899573,1731275444591,-500.0,0.00024931,2]
[341899574,1731275444601,-500.0,0.00024931,2]
[341899575,1731275444610,-500.0,0.00024931,2]
[341899576,1731275444619,-1307.78,0.00024931,2]
[341899577,1731275444629,-500.0,0.00024931,2]
[341899578,1731275444640,-500.0,0.00024931,2]
[341899579,1731275444650,-365.48175167,0.00024931,2]
[341899580,1731275444659,-911.46,0.00024931,2]
[341899581,1731275444668,-5623.61,0.00024931,2]
[341899582,1731275444678,-500.0,0.00024931,2]
[341899583,1731275444687,-500.0,0.00024931,2]
[341899584,1731275444697,-2188.38,0.00024931,2]
[341899585,1731275444707,-1502.41,0.00024931,2]
[341899586,1731275444717,-500.0,0.00024931,2]
[341899587,1731275444727,-4751.46,0.00024931,2]
[341899588,1731275444737,-858.74,0.00024931,2]
[341899589,1731275444747,-500.0,0.00024931,2]
[341899590,1731275444756,-500.0,0.00024931,2]
[341899591,1731275444766,-503.23241832,0.00024931,2]
[341899592,1731275444777,-500.0,0.00024931,2]
[341899593,1731275444788,-625.15,0.00024931,2]
[341899594,1731275444801,-500.0,0.00024931,2]
[341899595,1731275444812,-500.0,0.00024931,2]
[341899596,1731275444821,-2666.52,0.00024931,2]
[341899597,1731275444831,-500.0,0.00024931,2]
[341899598,1731275444845,-780.92,0.00024931,2]
[341899599,1731275444858,-500.0,0.00024931,2]
[341899600,1731275444872,-500.0,0.00024931,2]
[341899601,1731275444885,-297.75650361,0.00024931,2]
[341899602,1731275444898,-500.0,0.00024931,2]
[341899603,1731275444908,-500.0,0.00024931,2]
[341899604,1731275444919,-530.70661436,0.00024931,2]
[341899605,1731275444931,-500.0,0.00024931,2]
[341899606,1731275444943,-500.0,0.00024931,2]
[341899607,1731275444955,-500.0,0.00024931,2]
[341899608,1731275444967,-200.0,0.00024931,2]
[341899609,1731275444979,-530.73797508,0.00024931,2]
[341899610,1731275444992,-500.0,0.00024931,2]
[341899611,1731275445004,-2094.39,0.00024931,2]
[341899612,1731275445016,-500.0,0.00024931,2]
[341899613,1731275445030,-4194.02,0.00024931,2]
[341899614,1731275445043,-500.0,0.00024931,2]
[341899615,1731275445056,-500.0,0.00024931,2]
[341899616,1731275445069,-500.0,0.00024931,2]
[341899617,1731275445081,-500.0,0.00024931,2]
[341899618,1731275445093,-1632.32,0.00024931,2]
[341899619,1731275445104,-1548.26,0.00024931,2]
[341899620,1731275445117,-665.29,0.00024931,2]
[341899621,1731275445130,-2511.37,0.00024931,2]
[341899622,1731275445141,-500.0,0.00024931,2]
[341899623,1731275445153,-281.76913217,0.00024931,2]
[341899624,1731275445163,-500.0,0.00024931,2]
[341899625,1731275445174,-500.0,0.00024931,2]
[341899626,1731275445184,-500.0,0.00024931,2]
[341899627,1731275445195,-500.0,0.00024931,2]
[341899628,1731275445206,-500.0,0.00024931,2]
[341899629,1731275445218,-500.0,0.00024931,2]
[341899630,1731275445229,-945.35,0.00024931,2]
[341899631,1731275445241,-316.61065034,0.00024931,2]
[341899632,1731275445254,-1746.47,0.00024931,2]
[341899633,1731275445265,-500.0,0.00024931,2]
[341899634,1731275445280,-500.0,0.00024931,2]
[341899636,1731275445293,-573.94,0.00024931,2]
[341899637,1731275445304,-558.21,0.00024931,2]
[341899638,1731275445317,-569.69,0.00024931,2]
[341899639,1731275445330,-1685.16,0.00024931,2]
[341899641,1731275445341,-500.0,0.00024931,2]
[341899642,1731275445351,-646.10871589,0.00024931,2]
[341899644,1731275445362,-500.0,0.00024931,2]
[341899645,1731275445372,-988.87,0.00024931,2]
[341899646,1731275445382,-500.0,0.00024931,2]
[341899647,1731275445393,-500.0,0.00024931,2]
[341899650,1731275445404,-154.73186284,0.00024931,2]
[341899652,1731275445417,-500.0,0.00024931,2]
[341899654,1731275445429,-500.0,0.00024931,2]
[341899657,1731275445442,-500.0,0.00024931,2]
[341899659,1731275445452,-500.0,0.00024931,2]
[341899660,1731275445462,-2007.57,0.00024931,2]
[341899663,1731275445474,-500.0,0.00024931,2]
[341899665,1731275445484,-500.0,0.00024931,2]
[341899667,1731275445495,-841.88,0.00024931,2]
[341899669,1731275445507,-500.0,0.00024931,2]
[341899671,1731275445518,-500.0,0.00024931,2]
[341899673,1731275445529,-500.0,0.00024931,2]
[341899675,1731275445540,-500.0,0.00024931,2]
[341899676,1731275445550,-1389.72,0.00024931,2]
[341899677,1731275445560,-500.0,0.00024931,2]
[341899679,1731275445571,-500.0,0.00024931,2]
[341899680,1731275445582,-514.53,0.00024931,2]
[341899681,1731275445593,-500.0,0.00024931,2]
[341899682,1731275445603,-500.0,0.00024931,2]
[341899683,1731275445614,-500.47304241,0.00024931,2]
[341899684,1731275445624,-1749.33,0.00024931,2]
[341899685,1731275445635,-500.0,0.00024931,2]
[341899686,1731275445646,-650.98,0.00024931,2]
[341899687,1731275445658,-500.0,0.00024931,2]
[341899688,1731275445669,-500.0,0.00024931,2]
[341899689,1731275445680,-596.99,0.00024931,2]
[341899690,1731275445692,-2036.15,0.00024931,2]
[341899691,1731275445703,-500.0,0.00024931,2]
[341899692,1731275445714,-500.0,0.00024931,2]
[341899693,1731275445726,-500.0,0.00024931,2]
[341899694,1731275445738,-500.0,0.00024931,2]
[341899695,1731275445750,-500.0,0.00024931,2]
[341899696,1731275445763,-500.0,0.00024931,2]
[341899698,1731275445775,-500.0,0.00024931,2]
[341899699,1731275445792,-500.0,0.00024931,2]
[341899700,1731275445804,-567.0,0.00024931,2]
[341899701,1731275445816,-500.0,0.00024931,2]
[341899702,1731275445828,-500.0,0.00024931,2]
[341899703,1731275445841,-567.0,0.00024932,2]
[341899704,1731275445852,-234.0,0.00024932,2]
[341899705,1731275445864,-153.0,0.00024986,2]
[341899706,1731275445877,-268.399999,0.00025,2]
[341899707,1731275445888,-24377.63673765,0.00025,2]
[341899708,1731275445900,-16985.42928192,0.00025,2]
[341899709,1731275445912,-8997.69871104,0.00025,2]
[341899710,1731275445924,-346.5930488,0.00025,2]
[341899711,1731275445936,-827.55393526,0.00025,2]
[341899712,1731275445949,-567.0,0.00025,2]
[341899713,1731275445961,-196.93214,0.00025,7]
[341899714,1731275445973,-196.93214,0.00025,7]
[341899715,1731275445985,-587.111109,0.00025,7]
[341899716,1731275445999,-151.0,0.00025,7]
[341899717,1731275446011,-587.111109,0.00025,7]
[341899718,1731275446023,-151.0,0.00025,7]
[341899719,1731275446039,-292.790308,0.00025,7]
[341899720,1731275446051,-151.0,0.00025,7]
[341899721,1731275446062,-292.790308,0.00025,7]
[341899722,1731275446074,-151.0,0.00025,7]
[341899723,1731275446085,-151.0,0.00025,7]
[341899724,1731275446097,-151.0,0.00025,7]
[341899725,1731275446108,-151.0,0.00025,7]
[341899726,1731275446120,-1080.718312,0.00025,7]
[341899727,1731275446134,-357.336405,0.00025,7]
[341899728,1731275446146,-1080.718312,0.00025,7]
[341899729,1731275446158,-357.336405,0.00025,7]
[341899730,1731275446170,-431.499096,0.00025,7]
[341899731,1731275446182,-431.499096,0.00025,7]
[341899732,1731275446194,-925.283273,0.00025,7]
[341899733,1731275446206,-215.191431,0.00025,2]
[341899734,1731275446218,-925.283273,0.00025,7]
[341899735,1731275446229,-215.191431,0.00025,2]
[341899736,1731275446241,-234.0,0.00025,2]
[341899737,1731275446252,-224.569613,0.00025,7]
[341899738,1731275446264,-224.569613,0.00025,7]
[341899739,1731275446276,-1256.780018,0.00025,7]
[341899740,1731275446289,-1256.780018,0.00025,7]
[341899741,1731275446299,-302.96970909,0.00025,2]
[341899742,1731275446311,-283614.38648724,0.0002509,2]
[341899743,1731275446323,-151.0,0.0002509,7]
[341899744,1731275446333,-151.0,0.0002509,7]
[341899745,1731275446345,-151.0,0.0002509,7]
[341899746,1731275446356,-151.0,0.0002509,7]
[341899747,1731275446367,-151.0,0.0002509,7]
[341899748,1731275446379,-488.845034,0.0002509,7]
[341899749,1731275446390,-151.0,0.0002509,7]
[341899750,1731275446401,-151.0,0.0002509,7]
[341899751,1731275446412,-197.819861,0.0002509,7]
[341899752,1731275446423,-151.0,0.0002509,7]
[341899753,1731275446434,-151.0,0.0002509,7]
[341899754,1731275446445,-151.0,0.0002509,7]
[341899755,1731275446456,-151.0,0.0002509,7]
[341899756,1731275446467,-155.599286,0.0002509,7]
[341899757,1731275446479,-155.599286,0.0002509,7]
[341899758,1731275446490,-275.211354,0.0002509,7]
[341899759,1731275446501,-391.462961,0.0002509,7]
[341899760,1731275446513,-391.462961,0.0002509,7]
[341899761,1731275446524,-176.541486,0.0002509,7]
[341899762,1731275446535,-176.541486,0.0002509,7]
[341899763,1731275446547,-2112.08237,0.0002509,7]
[341899764,1731275446558,-2112.08237,0.0002509,7]
[341899765,1731275446569,-186.769301,0.0002509,7]
[341899766,1731275446580,-186.769301,0.0002509,7]
[341899767,1731275446592,-196.93214,0.0002509,7]
[341899768,1731275446603,-196.93214,0.0002509,7]
[341899769,1731275446615,-151.0,0.0002509,7]
[341899770,1731275446626,-522.360939,0.0002509,7]
[341899771,1731275446637,-151.0,0.0002509,7]
[341899772,1731275446649,-522.360939,0.0002509,7]
[341899773,1731275446661,-587.111109,0.0002509,7]
[341899774,1731275446672,-151.0,0.0002509,7]
[341899775,1731275446683,-587.111109,0.0002509,7]
[341899776,1731275446695,-158.657392,0.0002509,7]
[341899777,1731275446706,-158.657392,0.0002509,7]
[341899778,1731275446717,-151.0,0.0002509,7]
[341899779,1731275446728,-292.790308,0.0002509,7]
[341899780,1731275446739,-151.0,0.0002509,7]
[341899781,1731275446751,-292.790308,0.0002509,7]
[341899782,1731275446763,-151.0,0.0002509,7]
[341899783,1731275446774,-156.836248,0.0002509,7]
[341899784,1731275446789,-1132.550966,0.0002509,7]
[341899785,1731275446801,-1132.550966,0.0002509,7]
[341899786,1731275446812,-152.105996,0.0002509,7]
[341899787,1731275446824,-151.0,0.0002509,7]
[341899788,1731275446835,-233.499143,0.0002509,7]
[341899789,1731275446847,-1080.718312,0.0002509,7]
[341899790,1731275446858,-357.336405,0.0002509,7]
[341899791,1731275446871,-1080.718312,0.0002509,7]
[341899792,1731275446883,-357.336405,0.0002509,7]
[341899793,1731275446894,-431.499096,0.0002509,7]
[341899794,1731275446905,-431.499096,0.0002509,7]
[341899795,1731275446917,-925.283273,0.0002509,7]
[341899796,1731275446928,-215.191431,0.0002509,2]
[341899797,1731275446939,-925.283273,0.0002509,7]
[341899798,1731275446951,-215.191431,0.0002509,2]
[341899799,1731275446961,-151.0,0.0002509,7]
[341899800,1731275446972,-224.569613,0.0002509,7]
[341899801,1731275446983,-224.569613,0.0002509,7]
[341899802,1731275446994,-151.0,0.0002509,7]
[341899803,1731275447005,-1256.780018,0.0002509,7]
[341899804,1731275447015,-151.0,0.0002509,7]
[341899805,1731275447025,-1256.780018,0.0002509,7]
[341899806,1731275447036,-465.02374313,0.00025101,2]
[341899807,1731275447046,-1000.0,0.00025171,2]
[341899808,1731275447056,-1000.0,0.00025184,2]
[341899809,1731275447065,-1000.0,0.0002519,2]
[341899810,1731275447076,-238.754556,0.00025205,7]
[341899811,1731275447314,-238.754556,0.00025205,7]
[341899812,1731275447335,-160.422457,0.00025205,7]
[341899813,1731275447352,-500.0,0.00025205,2]
[341899814,1731275447362,-500.0,0.00025205,2]
[341899815,1731275447371,-500.0,0.00025205,2]
[341899816,1731275447380,-500.0,0.00025205,2]
[341899817,1731275447389,-500.0,0.00025205,2]
[341899818,1731275447398,-500.0,0.00025205,2]
[341899819,1731275447407,-500.0,0.00025205,2]
[341899820,1731275447416,-500.0,0.00025205,2]
[341899821,1731275447425,-500.0,0.00025205,2]
[341899822,1731275447435,-500.0,0.00025205,2]
[341899823,1731275447444,-500.0,0.00025205,2]
[341899824,1731275447453,-500.0,0.00025205,2]
[341899825,1731275447462,-500.0,0.00025205,2]
[341899826,1731275447471,-500.0,0.00025205,2]
[341899827,1731275447479,-500.0,0.00025205,2]
[341899828,1731275447488,-500.0,0.00025205,2]
[341899829,1731275447497,-500.0,0.00025205,2]
[341899830,1731275447507,-500.0,0.00025205,2]
[341899831,1731275447515,-500.0,0.00025205,2]
[341899832,1731275447525,-500.0,0.00025205,2]
[341899833,1731275447537,-500.0,0.00025205,2]
[341899834,1731275447546,-500.0,0.00025205,2]
[341899835,1731275447554,-512.23,0.00025205,2]
[341899836,1731275447563,-500.0,0.00025205,2]
[341899837,1731275447572,-500.0,0.00025205,2]
[341899838,1731275447581,-500.0,0.00025205,2]
[341899839,1731275447590,-250.0,0.00025205,2]
[341899840,1731275447599,-500.0,0.00025205,2]
[341899841,1731275447608,-500.0,0.00025205,2]
[341899842,1731275447617,-500.0,0.00025205,2]
[341899843,1731275447626,-270.7507828,0.00025205,2]
[341899844,1731275447635,-500.0,0.00025205,2]
[341899845,1731275447644,-587.86626999,0.00025205,2]
[341899846,1731275447653,-500.0,0.00025205,2]
[341899847,1731275447662,-500.0,0.00025205,2]
[341899848,1731275447671,-500.0,0.00025205,2]
[341899849,1731275447680,-500.0,0.00025205,2]
[341899850,1731275447688,-500.0,0.00025205,2]
[341899851,1731275447697,-500.0,0.00025205,2]
[341899852,1731275447707,-500.0,0.00025205,2]
[341899853,1731275447716,-500.0,0.00025205,2]
[341899854,1731275447725,-500.0,0.00025205,2]
[341899855,1731275447734,-774.27,0.00025205,2]
[341899856,1731275447743,-500.0,0.00025205,2]
[341899857,1731275447753,-512.62,0.00025205,2]
[341899858,1731275447762,-500.0,0.00025205,2]
[341899859,1731275447771,-500.0,0.00025205,2]
[341899860,1731275447780,-500.0,0.00025205,2]
[341899861,1731275447797,-500.0,0.00025205,2]
[341899862,1731275447806,-530.85474002,0.00025205,2]
[341899863,1731275447815,-541.66,0.00025205,2]
[341899864,1731275447824,-500.0,0.00025205,2]
[341899865,1731275447835,-500.0,0.00025205,2]
[341899866,1731275447843,-500.0,0.00025205,2]
[341899867,1731275447853,-500.0,0.00025205,2]
[341899868,1731275447863,-500.0,0.00025205,2]
[341899869,1731275447873,-500.0,0.00025205,2]
[341899870,1731275447883,-500.0,0.00025205,2]
[341899871,1731275447893,-500.0,0.00025205,2]
[341899872,1731275447902,-500.0,0.00025205,2]
[341899873,1731275447911,-1074.93,0.00025205,2]
[341899874,1731275447921,-500.0,0.00025205,2]
[341899875,1731275447930,-500.0,0.00025205,2]
[341899876,1731275447939,-1410.55,0.00025205,2]
[341899877,1731275447948,-500.0,0.00025205,2]
[341899878,1731275447958,-500.0,0.00025205,2]
[341899879,1731275447967,-815.49,0.00025205,2]
[341899880,1731275447976,-1000.0,0.00025205,2]
[341899881,1731275447986,-500.0,0.00025205,2]
[341899882,1731275447995,-500.0,0.00025205,2]
[341899883,1731275448004,-500.0,0.00025205,2]
[341899884,1731275448013,-500.0,0.00025205,2]
[341899885,1731275448022,-500.0,0.00025205,2]
[341899886,1731275448033,-500.0,0.00025205,2]
[341899887,1731275448044,-500.0,0.00025205,2]
[341899888,1731275448053,-374.26662894,0.00025205,2]
[341899889,1731275448062,-500.0,0.00025205,2]
[341899890,1731275448071,-501.67,0.00025205,2]
[341899891,1731275448080,-500.0,0.00025205,2]
[341899892,1731275448089,-500.0,0.00025205,2]
[341899893,1731275448099,-500.0,0.00025205,2]
[341899894,1731275448108,-500.0,0.00025205,2]
[341899895,1731275448117,-592.84,0.00025205,2]
[341899896,1731275448126,-500.0,0.00025205,2]
[341899897,1731275448135,-500.0,0.00025205,2]
[341899898,1731275448146,-500.0,0.00025205,2]
[341899899,1731275448155,-500.0,0.00025205,2]
[341899900,1731275448165,-500.0,0.00025205,2]
[341899901,1731275448175,-500.0,0.00025205,2]
[341899902,1731275448184,-500.0,0.00025205,2]
[341899903,1731275448193,-930.79,0.00025205,2]
[341899904,1731275448203,-500.0,0.00025205,2]
[341899905,1731275448212,-275.30098288,0.00025205,2]
[341899906,1731275448221,-2336.0,0.00025205,2]
[341899907,1731275448230,-500.0,0.00025205,2]
[341899908,1731275448240,-500.0,0.00025205,2]
[341899909,1731275448250,-768.52,0.00025205,2]
[341899910,1731275448259,-500.0,0.00025205,2]
[341899911,1731275448268,-600.45148863,0.00025205,2]